fUST/lending_fUST_20260221
["ID","MTS","AMOUNT","RATE_DAILY","PERIOD"]
[406224676,1771625438803,-500.0,0.00016559,2]
[406224677,1771625438812,-151.0,0.0001656,2]
[406224678,1771625438822,-151.0,0.0001656,2]
[406224679,1771625438831,-151.0,0.0001656,2]
[406224680,1771625438840,-187.78006525,0.0001656,2]
[406224681,1771625438850,-194.72792766,0.0001656,2]
[406224682,1771625438860,-151.0,0.0001656,2]
[406224683,1771625438869,-201.93286099,0.0001656,2]
[406224684,1771625438879,-151.0,0.0001656,2]
[406224685,1771625438888,-151.0,0.0001656,2]
[406224686,1771625438897,-151.0,0.0001656,2]
[406224687,1771625438906,-151.0,0.0001656,2]
[406224688,1771625438915,-151.0,0.0001656,2]
[406224689,1771625438925,-209.40437684,0.0001656,2]
[406224690,1771625438934,-151.0,0.0001656,2]
[406224691,1771625438944,-170.07839991,0.0001656,2]
[406224692,1771625438953,-217.15233878,0.0001656,2]
[406224693,1771625438963,-225.18697532,0.0001656,2]
[406224694,1771625438973,-233.51889341,0.0001656,2]
[406224695,1771625438983,-242.15909246,0.0001656,2]
[406224696,1771625438993,-251.11897888,0.0001656,2]
[406224697,1771625439002,-260.4103811,0.0001656,2]
[406224698,1771625439012,-376.10386903,0.0001656,2]
[406224699,1771625439021,-500.0,0.0001657,2]
[406224700,1771625439031,-500.0,0.00016844,2]
[406224701,1771625439040,-242.22,0.00016883,2]
[406224702,1771625439050,-500.0,0.00016948,2]
[406224703,1771625439059,-500.0,0.00016948,2]
[406224704,1771625439068,-500.0,0.00016948,2]
[406224705,1771625439079,-500.0,0.00016979,2]
[406224706,1771625439088,-500.0,0.00016979,2]
[406224707,1771625439097,-508.17256698,0.00016979,2]
[406224708,1771625439107,-162.73958361,0.00016983,2]
[406224709,1771625439116,-151.82722621,0.00016983,2]
[406224710,1771625439126,-304.66280968,0.00016989,2]
[406224711,1771625439135,-20991.58459664,0.0001699,2]
[406224712,1771625439151,-388.8,0.0001699,2]
[406224741,1771625446070,-35317.97910289,0.0001699,2]
[406224779,1771626632175,-269.08724583,0.0001555,2]
[406224801,1771626640630,-521.50092178,0.0001555,2]
[406225184,1771626644861,-355.20613209,0.00015395,2]
[406225186,1771626644870,-161.03430882,0.0001555,2]
[406225327,1771626646197,-1215.73004192,0.0001555,2]
[406226100,1771627838547,-1117.21673967,0.00014547,2]
[406226102,1771627838557,-631.0,0.00014694,2]
[406226104,1771627838567,-227.54667019,0.00014781,2]
[406226106,1771627838576,-277.53903346,0.00014881,2]
[406226108,1771627838586,-2320.19106148,0.0001555,2]
[406226110,1771627838595,-2072.89916878,0.00015587,2]
[406226112,1771627838604,-1452.2652939,0.00015992,2]
[406226114,1771627838614,-187.206991,0.00016074,2]
[406226116,1771627838623,-551.576814,0.00016374,2]
[406226118,1771627838633,-518.3809228,0.00016481,5]
[406226120,1771627838642,-347.06808943,0.0001656,2]
[406226122,1771627838651,-714.2624749,0.00016884,2]
[406226124,1771627838662,-876.8481431,0.00016884,2]
[406226126,1771627838671,-468.8813504,0.00016884,2]
[406226128,1771627838681,-2409.5869409,0.00016884,2]
[406226130,1771627838693,-3995.79833769,0.00017119,2]
[406226133,1771627838705,-100.8134914,0.00017628,2]
[406226136,1771627838720,-482.02997483,0.00017628,2]
[406226138,1771627838733,-181.7,0.000178,2]
[406226140,1771627838746,-151.0381072,0.00017808,2]
[406226142,1771627838756,-150.0,0.00017808,2]
[406226145,1771627838767,-265.34631576,0.00017934,2]
[406226147,1771627838778,-500.0,0.00017947,2]
[406226149,1771627838789,-47.65936327,0.00017989,2]
[406226346,1771627841038,-452.34063673,0.00017989,2]
[406226348,1771627841050,-203.16,0.0001799,3]
[406226351,1771627841062,-609.49,0.0001799,3]
[406226353,1771627841072,-1011.39936327,0.00017991,2]
[406226355,1771627841086,-153.14413573,0.00017991,2]
[406226358,1771627841098,-151.0,0.00017998,2]
[406226360,1771627841109,-445.43586427,0.00017998,2]
[406226871,1771627846333,-54.56413573,0.00017998,2]
[406226873,1771627846344,-279.9270992,0.00017998,2]
[406226875,1771627846359,-220.0729008,0.00017998,2]
[406226877,1771627846369,-179.9270992,0.00017998,2]
[406226881,1771627846394,-320.0729008,0.00017998,2]
[406226883,1771627846406,-500.0,0.00017998,2]
[406226885,1771627846417,-500.0,0.00017998,2]
[406226887,1771627846429,-500.0,0.00017998,2]
[406226890,1771627846440,-636.84663721,0.00017998,2]
[406226892,1771627846451,-500.0,0.00017998,2]
[406226894,1771627846464,-500.0,0.00017998,2]
[406226896,1771627846476,-500.0,0.00017998,2]
[406226899,1771627846488,-500.0,0.00017998,2]
[406226901,1771627846499,-500.0,0.00017998,2]
[406226903,1771627846511,-500.0,0.00017998,2]
[406226905,1771627846521,-162.34790195,0.00017998,2]
[406226907,1771627846531,-308.39649206,0.00017998,2]
[406226909,1771627846541,-505.33155492,0.00017998,2]
[406226911,1771627846551,-67.66757938,0.00017999,2]
[406226914,1771627846566,-210.85850906,0.00017999,2]
[406226916,1771627846577,-153.212783,0.00017999,2]
[406226918,1771627846588,-151.0,0.00017999,2]
[406226920,1771627846599,-3463.20961907,0.00017999,2]
[406228037,1771629045621,-1154.46659861,0.00012869,2]
[406228038,1771629855720,-807.6959367,0.00012052,2]
[406228039,1771629855746,-4145.24625252,0.00012341,2]
[406228040,1771629916884,-300.0,0.00012465,2]
[406228041,1771629916913,-1200.0,0.00012465,2]
[406228042,1771629916945,-47.05781078,0.00012466,2]
[406228043,1771629961809,-452.94218922,0.00012466,2]
[406228044,1771629961836,-184.70532244,0.00012466,2]
[406228045,1771629961862,-500.0,0.00012466,2]
[406228046,1771629961891,-222.81461721,0.00012466,2]
[406228047,1771629961917,-500.0,0.00012466,2]
[406228048,1771629961944,-293.07678247,0.00012466,2]
[406228049,1771629961970,-6446.46108866,0.00012467,2]
[406228084,1771630231713,-356.74998,0.00012467,2]
[406228085,1771630231726,-239.25002,0.00012467,2]
[406228086,1771630231737,-253.09998,0.00012467,2]
[406228101,1771630240211,-199.23075361,0.00012466,2]
[406228103,1771630240221,-932.14697371,0.00012467,2]
[406228110,1771630243068,-1236.00293045,0.00012467,2]
[406228127,1771630262401,-300.0,0.00012466,2]
[406228128,1771630262419,-300.0,0.00012467,2]
[406228129,1771630262430,-976.31954911,0.00012467,2]
[406228187,1771631431862,-289.66229907,0.00011126,2]
[406228188,1771631431871,-576.0,0.00011126,2]
[406228189,1771631431881,-150.0,0.00011268,2]
[406228190,1771631431890,-300.0,0.00011465,2]
[406228191,1771631431899,-300.0,0.00011465,2]
[406228192,1771631431908,-300.0,0.00011465,2]
[406228193,1771631431916,-961.50061243,0.00011465,2]
[406228195,1771631438151,-238.49938757,0.00011465,2]
[406228196,1771631438160,-8757.5405874,0.00011466,2]
[406228197,1771631438170,-2240.3637531,0.00011726,2]
[406228198,1771631438179,-276.63789255,0.00012217,2]
[406228199,1771631438188,-300.0,0.00012465,2]
[406228200,1771631438197,-199.0,0.00012466,2]
[406228201,1771631438206,-3042.786446,0.00012466,2]
[406228203,1771631438216,-31295.027185,0.00012467,2]
[406228211,1771631440525,-944.71880614,0.00012467,2]
[406228234,1771631445141,-3456.39347663,0.00012467,2]
[406228242,1771631446044,-16399.063948,0.00012467,2]
[406228243,1771631446054,-344.35815427,0.00012593,2]
[406228244,1771631446069,-75.64184573,0.00012593,2]
[406228245,1771631446080,-1680.0,0.00012612,2]
[406228246,1771631446090,-4330.72750631,0.00012771,2]
[406228247,1771631446101,-3554.90114899,0.000129,2]
[406228248,1771631446110,-21482.03669093,0.00013,2]
[406228249,1771631446119,-420.0,0.00013088,2]
[406228250,1771631446129,-1579.479734,0.00013212,2]
[406228251,1771631446140,-177.0,0.00013268,2]
[406228252,1771631446149,-209.37360617,0.00013273,2]
[406228253,1771631446158,-500.0,0.00013273,2]
[406228254,1771631446167,-464.89229601,0.00013273,2]
[406228255,1771631446176,-150.0,0.00013425,2]
[406228256,1771631446185,-500.0,0.00013425,2]
[406228258,1771631446194,-157.89058992,0.00013479,2]
[406228259,1771631446203,-178.31481418,0.00013479,2]
[406228260,1771631446212,-150.0,0.00013479,2]
[406228261,1771631446225,-213.90317119,0.0001348,2]
[406228262,1771631446235,-500.0,0.0001348,2]
[406228263,1771631446244,-1852.12004198,0.000135,2]
[406228264,1771631446253,-150.0,0.00013534,2]
[406228265,1771631446264,-500.0,0.00013535,2]
[406228266,1771631446273,-150.0,0.00013589,2]
[406228267,1771631446283,-500.0,0.00013589,2]
[406228268,1771631446292,-238.39671084,0.00013643,2]
[406228269,1771631446302,-500.0,0.00013644,2]
[406228270,1771631446311,-842.35919976,0.00013698,2]
[406228271,1771631446320,-500.0,0.00013698,2]
[406228272,1771631446331,-500.0,0.00013698,2]
[406228273,1771631446341,-500.0,0.00013698,2]
[406228274,1771631446350,-511.96308812,0.00013698,2]
[406228275,1771631446359,-458.45832785,0.00013698,2]
[406228276,1771631446368,-500.0,0.00013698,2]
[406228277,1771631446378,-388.61,0.00013698,2]
[406228278,1771631446388,-500.0,0.00013698,2]
[406228279,1771631446397,-500.0,0.00013698,2]
[406228280,1771631446406,-500.0,0.00013698,2]
[406228281,1771631446415,-1451.2853446,0.00013699,2]
[406228282,1771631446424,-518.3574773,0.00013699,2]
[406228283,1771631446433,-269.066596,0.00013699,2]
[406228284,1771631446442,-151.0,0.00013699,2]
[406228285,1771631446451,-151.0,0.00013699,2]
[406228286,1771631446461,-199.637099,0.00013699,2]
[406228287,1771631446470,-500.0,0.00013699,2]
[406228288,1771631446478,-500.0,0.00013699,2]
[406228289,1771631446487,-500.0,0.00013699,2]
[406228290,1771631446496,-150.0,0.000137,2]
[406228291,1771631446505,-352.0,0.00013743,2]
[406228292,1771631446514,-500.0,0.00013754,2]
[406228293,1771631446524,-500.0,0.00013754,2]
[406228294,1771631446533,-1579.479734,0.00013768,2]
[406228295,1771631446542,-500.0,0.00013809,2]
[406228296,1771631446552,-4421.61288678,0.00013817,2]
[406228297,1771631446561,-1000.0,0.00013821,2]
[406228298,1771631446570,-500.0,0.00013863,2]
[406228299,1771631446579,-273.99960366,0.00013918,2]
[406228300,1771631446588,-500.0,0.00014028,2]
[406228301,1771631446597,-500.0,0.00014095,2]
[406228302,1771631446606,-500.0,0.0001415,2]
[406228303,1771631446615,-150.0,0.000142,2]
[406228304,1771631446624,-500.0,0.00014205,2]
[406228305,1771631446633,-500.0,0.00014247,2]
[406228306,1771631446642,-1000.0,0.00014247,2]
[406228307,1771631446651,-185.41525337,0.00014259,2]
[406228308,1771631446659,-500.0,0.00014302,2]
[406228309,1771631446668,-1579.479734,0.00014324,2]
[406228310,1771631446677,-1000.0,0.00014368,2]
[406228311,1771631446686,-515.92331516,0.00014576,2]
[406228312,1771631446695,-150.0,0.000148,2]
[406228313,1771631446704,-3217.57435923,0.00014862,2]
[406228329,1771632080975,-267.22926315,0.00013673,2]
[406228358,1771632632127,-608.0,0.0001323,2]
[406228359,1771632632137,-196.53385819,0.0001323,2]
[406228360,1771632632146,-86.46614181,0.00013249,2]
[406228374,1771632638279,-63.53385819,0.00013249,2]
[406228375,1771632638289,-331.89360994,0.00013267,2]
[406228376,1771632638299,-1876.8657799,0.00013435,2]
[406228377,1771632638308,-300.94,0.00013662,2]
[406228378,1771632638318,-235.33565321,0.00013699,2]
[406228379,1771632638327,-265.99305765,0.00013699,2]
[406228380,1771632638337,-150.0,0.000137,2]
[406228381,1771632638346,-1239.7340677,0.00013974,2]
[406228382,1771632638356,-500.0,0.00014174,2]
[406228383,1771632638365,-891.0,0.00014174,2]
[406228384,1771632638375,-150.0,0.000142,2]
[406228385,1771632638384,-300.0,0.00014252,2]
[406228386,1771632638394,-300.0,0.00014252,2]
[406228387,1771632638403,-300.0,0.00014252,2]
[406228388,1771632638413,-300.0,0.00014252,2]
[406228389,1771632638423,-300.0,0.00014252,2]
[406228390,1771632638433,-300.0,0.00014252,2]
[406228391,1771632638442,-300.0,0.00014252,2]
[406228392,1771632638452,-300.0,0.00014252,2]
[406228393,1771632638462,-300.0,0.00014252,2]
[406228394,1771632638471,-300.0,0.00014252,2]
[406228395,1771632638482,-300.0,0.00014252,2]
[406228396,1771632638492,-300.0,0.00014252,2]
[406228397,1771632638502,-300.0,0.00014252,2]
[406228398,1771632638512,-300.0,0.00014252,2]
[406228399,1771632638523,-300.0,0.00014252,2]
[406228400,1771632638532,-600.0,0.00014536,2]
[406228401,1771632638545,-249.44802042,0.00014653,2]
[406228402,1771632638555,-545.64178733,0.00014653,2]
[406228403,1771632638564,-996.79428961,0.00014653,2]
[406228404,1771632638573,-431.07675942,0.00014653,2]
[406228405,1771632638583,-414.51765983,0.00014659,2]
[406228406,1771632638592,-746.1317877,0.00014659,2]
[406228407,1771632638602,-189.31322978,0.00014659,2]
[406228408,1771632638611,-757.25291914,0.00014659,2]
[406228409,1771632638623,-1703.81906806,0.00014659,2]
[406228410,1771632638632,-327.48395315,0.00014659,2]
[406228411,1771632638641,-589.47111568,0.00014659,2]
[406228412,1771632638651,-394.58809514,0.00014659,2]
[406228413,1771632638661,-3110.53850534,0.00014779,2]
[406228414,1771632638671,-150.0,0.000148,2]
[406228415,1771632638681,-500.0,0.00014879,2]
[406228416,1771632638690,-319.39248493,0.00014879,2]
[406228417,1771632638699,-500.0,0.00014879,2]
[406228418,1771632638709,-531.34204711,0.00014879,2]
[406228419,1771632638718,-500.0,0.00014879,2]
[406228420,1771632638728,-177.28415072,0.00014879,2]
[406228421,1771632638737,-156.94930797,0.00014879,2]
[406228422,1771632638747,-500.0,0.00014879,2]
[406228423,1771632638756,-500.0,0.00014879,2]
[406228424,1771632638765,-500.0,0.00014879,2]
[406228425,1771632638775,-500.0,0.00014879,2]
[406228426,1771632638784,-500.0,0.00014879,2]
[406228427,1771632638793,-500.0,0.00014879,2]
[406228428,1771632638802,-500.0,0.00014879,2]
[406228429,1771632638811,-500.0,0.00014879,2]
[406228430,1771632638820,-500.0,0.00014879,2]
[406228431,1771632638829,-500.0,0.00014879,2]
[406228432,1771632638838,-500.0,0.00014879,2]
[406228433,1771632638847,-500.0,0.00014879,2]
[406228434,1771632638856,-500.0,0.00014879,2]
[406228435,1771632638865,-500.0,0.00014879,2]
[406228436,1771632638874,-500.0,0.00014879,2]
[406228437,1771632638883,-500.0,0.00014879,2]
[406228438,1771632638892,-474.83029291,0.00014879,2]
[406228448,1771632646194,-25.16970709,0.00014879,2]
[406228450,1771632646204,-398.49924131,0.00014879,2]
[406228452,1771632646213,-412.33843278,0.00014879,2]
[406228453,1771632646263,-87.66156722,0.00014879,2]
[406228454,1771632646272,-500.0,0.00014879,2]
[406228455,1771632646282,-500.0,0.00014879,2]
[406228456,1771632646291,-500.0,0.00014879,2]
[406228457,1771632646301,-500.0,0.00014879,2]
[406228458,1771632646310,-500.0,0.00014879,2]
[406228459,1771632646320,-1579.479734,0.0001488,2]
[406228460,1771632646330,-180.21012432,0.000149,2]
[406228461,1771632646339,-180.21012432,0.000149,2]
[406228462,1771632646349,-180.21012432,0.000149,2]
[406228463,1771632646358,-173.951322,0.00015068,2]
[406228464,1771632646368,-177.0,0.00015249,2]
[406228465,1771632646377,-1286.65725,0.00015288,2]
[406228466,1771632646387,-150.0,0.000153,2]
[406228467,1771632646396,-1579.479734,0.00015436,2]
[406228468,1771632646406,-1030.95481859,0.0001555,2]
[406228469,1771632646415,-676.26652302,0.000156,30]
[406228471,1771632646425,-150.0,0.000159,2]
[406228473,1771632646435,-720.0,0.0001599,2]
[406228474,1771632646444,-1579.479734,0.00015993,2]
[406228475,1771632646454,-525.04091665,0.00016267,2]
[406228476,1771632646464,-427.0,0.00016388,2]
[406228477,1771632646474,-150.0,0.000164,2]
[406228478,1771632646483,-151.0,0.00016438,2]
[406228479,1771632646493,-151.0,0.00016438,2]
[406228480,1771632646502,-151.0,0.00016438,2]
[406228481,1771632646512,-169.00460919,0.00016438,2]
[406228482,1771632646521,-1239.7340677,0.00016466,2]
[406228483,1771632646530,-150.0,0.00017,2]
[406228484,1771632646542,-157.73823795,0.00017096,2]
[406228485,1771632646554,-161.50269229,0.00017096,2]
[406228486,1771632646563,-165.39636001,0.00017096,2]
[406228487,1771632646573,-250.0,0.00017098,2]
[406228488,1771632646584,-500.0,0.00017098,2]
[406228489,1771632646594,-151.0,0.00017098,2]
[406228490,1771632646603,-500.0,0.00017098,2]
[406228491,1771632646615,-151.0,0.00017098,2]
[406228492,1771632646624,-500.0,0.00017098,2]
[406228493,1771632646635,-151.0,0.00017098,2]
[406228494,1771632646645,-500.0,0.00017098,2]
[406228495,1771632646655,-151.0,0.00017098,2]
[406228496,1771632646668,-500.0,0.00017098,2]
[406228497,1771632646679,-151.0,0.00017098,2]
[406228498,1771632646689,-500.0,0.00017098,2]
[406228499,1771632646699,-203.41475033,0.00017098,2]
[406228500,1771632646710,-500.0,0.00017098,2]
[406228501,1771632646724,-500.0,0.00017098,2]
[406228502,1771632646735,-500.0,0.00017098,2]
[406228503,1771632646745,-250.0,0.00017098,2]
[406228504,1771632646755,-500.0,0.00017098,2]
[406228505,1771632646772,-187.78006525,0.00017098,2]
[406228506,1771632646782,-295.87030516,0.00017098,2]
[406228507,1771632646793,-500.0,0.00017098,2]
[406228508,1771632646804,-194.72792766,0.00017098,2]
[406228509,1771632646814,-500.0,0.00017098,2]
[406228510,1771632646824,-201.93286099,0.00017098,2]
[406228511,1771632646834,-500.0,0.00017098,2]
[406228512,1771632646844,-209.40437684,0.00017098,2]
[406228513,1771632646854,-500.0,0.00017098,2]
[406228514,1771632646864,-250.0,0.00017098,2]
[406228515,1771632646875,-217.15233878,0.00017098,2]
[406228516,1771632646884,-250.0,0.00017098,2]
[406228517,1771632646894,-225.18697532,0.00017098,2]
[406228518,1771632646903,-250.0,0.00017098,2]
[406228519,1771632646913,-233.51889341,0.00017098,2]
[406228520,1771632646923,-242.15909246,0.00017098,2]
[406228521,1771632646932,-192.85742427,0.00017098,2]
[406228522,1771632646942,-250.0,0.00017098,2]
[406228523,1771632646952,-251.11897888,0.00017098,2]
[406228524,1771632646961,-250.0,0.00017098,2]
[406228525,1771632646975,-260.4103811,0.00017098,2]
[406228526,1771632646984,-250.0,0.00017098,2]
[406228527,1771632646993,-270.0455652,0.00017098,2]
[406228528,1771632647002,-250.0,0.00017098,2]
[406228529,1771632647012,-250.0,0.00017098,2]
[406228530,1771632647021,-280.03725112,0.00017098,2]
[406228531,1771632647030,-244.24672263,0.00017098,2]
[406228532,1771632647039,-290.39862941,0.00017098,2]
[406228533,1771632647048,-301.1433787,0.00017098,2]
[406228534,1771632647058,-187.37301609,0.00017249,2]
[406228535,1771632647067,-150.0,0.000175,2]
[406228536,1771632647078,-864.0,0.00017589,2]
[406228537,1771632647087,-161.50269228,0.00017624,2]
[406228538,1771632647096,-165.39636,0.00017624,2]
[406228539,1771632647106,-482.24150937,0.00017639,2]
[406228540,1771632647116,-150.0,0.00017808,2]
[406228541,1771632647125,-464.58,0.0001799,3]
[406228542,1771632647134,-232.29,0.0001799,3]
[406228543,1771632647143,-696.89,0.0001799,3]
[406228544,1771632647153,-50573.40303567,0.00018,2]
[406228545,1771632647162,-112808.05090663,0.00018,2]
[406228546,1771632647178,-6011.74788922,0.00018,2]
[406228548,1771632647281,-256.2,0.00018,2]
[406228696,1771633846327,-521.50092178,0.0001555,2]
[406228697,1771633846338,-1007.40411122,0.000156,2]
[406228755,1771634073275,10000.0,0.00014,30]
[406228762,1771634090798,10000.0,0.00014,30]
[406228767,1771634103998,10000.0,0.00014,30]
[406228769,1771634116633,9305.43,0.00014,30]
[406228838,1771634914834,310.72688732,0.0001,5]
[406228846,1771635004844,151.93,6.5e-05,2]
[406228847,1771635005460,151.93,6.6e-05,2]
[406228848,1771635006052,151.93,6.8e-05,2]
[406228849,1771635006484,151.93,6.9e-05,2]
[406228880,1771635038567,-1968.1218381,0.00014364,2]
[406228881,1771635038621,-699.22701043,0.00014364,2]
[406228882,1771635038632,-803.92745742,0.00014364,2]
[406228889,1771635041076,-1179.33382873,0.00014364,2]
[406228901,1771635046508,-349.38986532,0.00014364,2]
[406228902,1771635046518,-2394.70383312,0.00014509,2]
[406228905,1771635047189,-2605.29616688,0.00014509,2]
[406228906,1771635047198,-2034.2190458,0.00014567,2]
[406228907,1771635047208,-521.500922,0.00015288,2]
[406228908,1771635047222,-150.0,0.000153,2]
[406228909,1771635047231,-300.0,0.00015562,2]
[406228910,1771635047241,-300.0,0.00015562,2]
[406228911,1771635047251,-300.0,0.00015562,2]
[406228912,1771635047261,-300.0,0.00015562,2]
[406228913,1771635047271,-300.0,0.00015562,2]
[406228914,1771635047281,-300.0,0.00015562,2]
[406228915,1771635047295,-300.0,0.00015562,2]
[406228916,1771635047306,-300.0,0.00015562,2]
[406228917,1771635047315,-300.0,0.00015562,2]
[406228918,1771635047325,-300.0,0.00015562,2]
[406228919,1771635047336,-300.0,0.00015562,2]
[406228920,1771635047347,-300.0,0.00015562,2]
[406228921,1771635047356,-48.27362829,0.00015562,2]
[406228988,1771635681285,-2825.56193971,0.00014359,2]
[406229040,1771636204805,154.88,6.5e-05,2]
[406229041,1771636205469,154.88,6.5e-05,2]
[406229042,1771636205977,154.88,6.5e-05,2]
[406229043,1771636206553,154.88,6.6e-05,2]
[406229044,1771636207013,154.88,6.6e-05,2]
[406229045,1771636207535,154.88,6.6e-05,2]
[406229046,1771636208004,154.88,6.6e-05,2]
[406229047,1771636208584,154.88,6.7e-05,2]
[406229048,1771636209036,154.88,6.7e-05,2]
[406229049,1771636209523,154.88,6.7e-05,2]
[406229050,1771636209987,154.88,6.7e-05,2]
[406229051,1771636210458,154.88,6.7e-05,2]
[406229052,1771636210930,154.88,6.8e-05,2]
[406229053,1771636211487,154.88,6.8e-05,2]
[406229054,1771636212127,154.88,6.8e-05,2]
[406229055,1771636212585,154.88,6.8e-05,2]
[406229056,1771636213253,154.88,6.9e-05,2]
[406229057,1771636213822,154.88,6.9e-05,2]
[406229058,1771636214351,154.88,6.9e-05,2]
[406229394,1771637438128,-5000.0,0.00011983,2]
[406229397,1771637438138,-5000.0,0.00012104,2]
[406229399,1771637438147,-150.0,0.00012412,2]
[406229402,1771637438157,-2100.09441044,0.00012471,2]
[406229403,1771637438167,-150.0,0.000137,2]
[406229406,1771637438176,-4050.18882103,0.00013872,2]
[406229408,1771637438185,-171.45735662,0.00014045,2]
[406229409,1771637438195,-141.16668927,0.000142,2]
[406229548,1771637440522,-8.83331073,0.000142,2]
[406229549,1771637440533,-253.07746365,0.00014653,2]
[406229550,1771637440542,-192.25997792,0.00014784,2]
[406229551,1771637440552,-155.65800011,0.00014784,2]
[406229552,1771637440564,-190.40996015,0.00014784,2]
[406229553,1771637440573,-150.0,0.000148,2]
[406229554,1771637440583,-173.951322,0.00015068,2]
[406229555,1771637440593,-657.53194658,0.00015273,2]
[406229560,1771637444494,-898.69894953,0.00014058,2]
[406229573,1771637446059,-307.3877633,0.00014058,2]
[406229584,1771637486950,-2044.1386608,0.00013917,2]
[406230212,1771638646075,-297.7342268,0.00012005,2]
[406230240,1771639269241,-603.51426665,0.00011303,2]
[406230399,1771639804665,153.32,6.5e-05,2]
[406230400,1771639805160,153.32,6.6e-05,2]
[406230401,1771639805752,153.32,6.8e-05,2]
[406230402,1771639806265,153.32,6.9e-05,2]
[406231082,1771639846249,-2348.4589055,0.00010631,2]
[406231193,1771641032283,-5000.0,9.424e-05,2]
[406231195,1771641032293,-552.0,9.424e-05,2]
[406231196,1771641032303,-5000.0,9.519e-05,2]
[406231197,1771641032312,-300.0,9.564e-05,2]
[406231198,1771641032321,-300.0,9.564e-05,2]
[406231199,1771641032330,-300.0,9.565e-05,2]
[406231200,1771641032340,-150.0,9.567e-05,2]
[406231201,1771641032351,-2215.27145212,9.726e-05,2]
[406231202,1771641032360,-1200.0,9.908e-05,2]
[406231203,1771641032369,-500.0,0.0001,2]
[406231204,1771641032378,-239.0,0.00010522,2]
[406231205,1771641032387,-300.0,0.00010665,2]
[406231206,1771641032397,-988.16971806,0.00010666,2]
[406231207,1771641032409,-3292.37318628,0.00010666,2]
[406231208,1771641032418,-500.0,0.00011,2]
[406231209,1771641032427,-6.4581591,0.00011,2]
[406231339,1771641040806,-608.79581332,0.0001089,2]
[406231340,1771641040859,-1051.78110434,0.0001089,2]
[406231344,1771641043762,-513.17087944,0.00010781,2]
[406231345,1771641043774,-483.62665589,0.00010781,2]
[406231346,1771641043783,-687.12334411,0.0001089,2]
[406231350,1771641046308,-2652.29973823,0.0001089,2]
[406231351,1771641046317,-2305.17398246,0.00011,2]
[406231352,1771641046363,-6480.89611764,0.00011,2]
[406231353,1771641046377,-359.0,0.00011,2]
[406231354,1771641046475,-12070.43103412,0.00011,2]
[406231355,1771641046485,-500.0,0.00011065,2]
[406231356,1771641046495,-500.0,0.00011065,2]
[406231357,1771641046504,-500.0,0.00011065,2]
[406231358,1771641046514,-500.0,0.00011065,2]
[406231359,1771641046523,-500.0,0.00011065,2]
[406231360,1771641046534,-500.0,0.00011065,2]
[406231361,1771641046544,-500.0,0.00011065,2]
[406231362,1771641046553,-500.0,0.00011065,2]
[406231363,1771641046563,-500.0,0.00011065,2]
[406231364,1771641046572,-500.0,0.00011065,2]
[406231365,1771641046581,-500.0,0.00011065,2]
[406231366,1771641046591,-500.0,0.00011065,2]
[406231367,1771641046601,-500.0,0.00011065,2]
[406231368,1771641046610,-500.0,0.00011065,2]
[406231369,1771641046620,-500.0,0.00011065,2]
[406231370,1771641046630,-500.0,0.00011065,2]
[406231371,1771641046640,-500.0,0.00011065,2]
[406231372,1771641046649,-500.0,0.00011065,2]
[406231373,1771641046659,-500.0,0.00011065,2]
[406231374,1771641046668,-500.0,0.00011065,2]
[406231375,1771641046678,-500.0,0.00011065,2]
[406231376,1771641046688,-500.0,0.00011065,2]